fUSD/lending_fUSD_20251223
["ID","MTS","AMOUNT","RATE_DAILY","PERIOD"]
[399577025,1766513445827,-161.44392766,0.00020135,2]
[399577026,1766513445838,-230.40995362,0.00020387,2]
[399577027,1766513445848,-173.03903704,0.00020387,2]
[399577028,1766513445858,-6668.37214894,0.00020387,2]
[399577029,1766513445867,-3723.09963109,0.0002041,2]
[399577030,1766513445880,-504.65036891,0.0002041,2]
[399577031,1766513445890,-266.88727112,0.00020485,2]
[399577032,1766513445988,-733.11272888,0.00020485,2]
[399577033,1766513446004,-2464.13,0.0002049,2]
[399577034,1766513446015,-320.0,0.00020533,2]
[399577035,1766513446024,-528.04,0.00020651,2]
[399577036,1766513446035,-2000.0,0.000207,2]
[399577037,1766513446044,-1000.0,0.000207,2]
[399577038,1766513446054,-150.0,0.00020772,2]
[399577039,1766513446064,-211.648,0.00020772,2]
[399577040,1766513446074,-170.0,0.00020772,2]
[399577041,1766513446084,-1000.0,0.00020795,2]
[399577042,1766513446095,-166.76,0.00021027,2]
[399577043,1766513446104,-2039.97808723,0.00021065,2]
[399577047,1766513446183,-840.44957903,0.00021065,2]
[399577067,1766513976526,-207.25,0.00010713,2]
[399577068,1766513976550,-41.7230105,0.0001648,2]
[399577069,1766514036474,-172.572664,0.0001648,2]
[399577070,1766514067982,172.572664,7.945e-05,2]
[399577071,1766514082098,-300.0,0.00015783,2]
[399577072,1766514084083,-200.0,0.00015783,2]
[399577073,1766514084111,-19.41245077,0.00016331,2]
[399577074,1766514086734,-907.43852664,0.00016331,2]
[399577075,1766514094546,-517.021,0.00016152,2]
[399577076,1766514094580,-73.14902259,0.00016331,2]
[399577077,1766514094616,-300.0,0.00016479,2]
[399577078,1766514094651,-1200.0,0.0001648,2]
[399577079,1766514094685,-288.0,0.0001648,2]
[399577080,1766514094719,-1064.2298072,0.0001648,2]
[399577081,1766514094757,-550.0,0.0001648,2]
[399577082,1766514094790,-159.049,0.0001648,2]
[399577083,1766514094823,-500.0,0.00016481,2]
[399577084,1766514094855,-342.27736951,0.00016481,2]
[399577085,1766514095059,-12.5576014,0.00016481,2]
[399577086,1766514095092,-500.0,0.00016481,2]
[399577087,1766514095123,-500.0,0.00016481,2]
[399577088,1766514095154,-500.0,0.00016481,2]
[399577089,1766514095186,-500.0,0.00016481,2]
[399577090,1766514095218,-500.0,0.00016481,2]
[399577091,1766514095250,-500.0,0.00016481,2]
[399577092,1766514095283,-500.0,0.00016481,2]
[399577093,1766514095315,-500.0,0.00016481,2]
[399577094,1766514095345,-500.0,0.00016481,2]
[399577095,1766514095377,-474.8947972,0.00016481,2]
[399577096,1766514095499,-25.1052028,0.00016481,2]
[399577097,1766514097013,-216.10852332,0.00016482,2]
[399577098,1766514097027,-10000.01,0.00016482,2]
[399577099,1766514097073,-10000.01,0.00016482,2]
[399577100,1766514097087,-10000.01,0.00016482,2]
[399577101,1766514097406,-10000.01,0.00016482,2]
[399577102,1766514097497,-10000.01,0.00016482,2]
[399577103,1766514100485,-10000.01,0.00016482,2]
[399577104,1766514100600,-10000.01,0.00016482,2]
[399577105,1766514100715,-10000.01,0.00016482,2]
[399577106,1766514100823,-10000.01,0.00016482,2]
[399577107,1766514124737,-10000.01,0.00016482,2]
[399577108,1766514124951,-10000.01,0.00016482,2]
[399577109,1766514125112,-10000.01,0.00016482,2]
[399577110,1766514125359,-10000.01,0.00016482,2]
[399577111,1766514127658,-352.98021285,0.00016433,2]
[399577112,1766514127691,-1863.66254373,0.00016481,2]
[399577113,1766514127755,-5566.72448684,0.00016482,2]
[399577114,1766514127817,6542.477423,7.945e-05,2]
[399577115,1766514129292,-161.53292789,0.00016482,2]
[399577116,1766514132453,-278.53011109,0.00016482,2]
[399577117,1766514133740,-10000.01,0.00016482,2]
[399577118,1766514134966,-251.46810495,0.00016482,2]
[399577119,1766514136719,-476.3076972,0.00016481,2]
[399577120,1766514136760,-9047.3946056,0.00016482,2]
[399577121,1766514139796,-502.13274033,0.00016481,2]
[399577122,1766514140216,-500.0,0.00016481,2]
[399577123,1766514140250,-500.0,0.00016481,2]
[399577124,1766514140281,-424.17811138,0.00016481,2]
[399577125,1766514140314,-500.0,0.00016481,2]
[399577126,1766514140432,-5147.38829658,0.00016482,2]
[399577127,1766514142709,-10000.01,0.00016482,2]
[399577128,1766514142866,-10000.01,0.00016482,2]
[399577129,1766514201467,-182.34796988,0.00015703,2]
[399577130,1766514202956,-411.14805633,0.00015703,2]
[399577131,1766514205557,-342.9528579,0.00015703,2]
[399577132,1766514207738,-233.89493843,0.00015703,2]
[399577133,1766514209220,-329.64617746,0.00015703,2]
[399577134,1766514213268,-321.830218,0.00015703,2]
[399577135,1766514213293,-4.94558201,0.00015783,2]
[399577136,1766514219285,-155.26093895,0.00015783,2]
[399577137,1766514219310,-44.18238028,0.00015783,2]
[399577138,1766514222040,-251.80995595,0.00015783,2]
[399577140,1766514309267,-204.00766377,0.00015783,2]
[399577141,1766514309306,-1000.0,0.00016331,2]
[399577142,1766514309343,-1200.0,0.00016381,2]
[399577143,1766514309380,-300.0,0.00016381,2]
[399577144,1766514310520,-300.0,0.00016381,2]
[399577145,1766514310550,-188.17872434,0.00016382,2]
[399577146,1766514310821,-3615.63722378,0.00016382,2]
[399577147,1766514315124,-10000.01,0.00016382,2]
[399577148,1766514336522,-278.3762011,0.00015783,2]
[399577149,1766514361627,10326.9138679,8e-05,2]
[399577150,1766514367616,5441.490686,7.945e-05,2]
[399577151,1766514381466,-221.6237989,0.00015783,2]
[399577152,1766514381495,-126.56624515,0.00015783,2]
[399577153,1766514416130,-33.60975485,0.00015783,2]
[399577154,1766514416153,-269.10586122,0.000162,5]
[399577155,1766514426464,-277.50028548,0.000162,5]
[399577156,1766514428050,681.428454,7.945e-05,2]
[399577157,1766514428565,-206.18976485,0.000162,5]
[399577158,1766514432933,-246.648431,0.00015783,2]
[399577159,1766514436648,-204.49540282,0.00015783,2]
[399577160,1766514439682,-48.85616618,0.00015783,2]
[399577161,1766514439707,-104.01979741,0.000162,5]
[399577162,1766514446503,-174.81199944,0.000162,5]
[399577163,1766514449286,-373.10826952,0.000162,5]
[399577164,1766514451119,-316.52783228,0.000162,5]
[399577165,1766514454679,-294.49080618,0.000162,5]
[399577166,1766514458440,-216.19240501,0.000162,5]
[399577167,1766514461019,-223.13593148,0.000162,5]
[399577168,1766514463381,-328.85283733,0.000162,5]
[399577169,1766514465617,-173.98420348,0.000162,5]
[399577170,1766514469839,-171.14716267,0.000162,5]
[399577171,1766514473537,-278.54693503,0.000162,5]
[399577172,1766514476634,-239.704737,0.000162,5]
[399577173,1766514478103,-159.41244379,0.000162,5]
[399577174,1766514480307,-263.16667018,0.000162,5]
[399577175,1766514484668,-275.33871985,0.000162,5]
[399577177,1766514487387,-110.69190184,0.000162,5]
[399577178,1766514487410,-122.17473395,0.000162,2]
[399577179,1766514492152,-187.58919864,0.000162,2]
[399577180,1766514493798,-104.23606741,0.000162,2]
[399577181,1766514493822,-100.62599023,0.00016246,2]
[399577182,1766514498470,-50.37400977,0.00016246,2]
[399577183,1766514498494,-120.50435299,0.00016252,2]
[399577184,1766514500584,-30.49564701,0.00016252,2]
[399577185,1766514500607,-169.60403793,0.00016331,2]
[399577188,1766514504934,-238.28198574,0.00016331,2]
[399577189,1766514509207,-262.43510493,0.00016331,2]
[399577190,1766514510817,-261.2094722,0.00016331,2]
[399577192,1766514516917,-151.0,0.00016263,2]
[399577193,1766514516942,-68.4693992,0.00016331,2]
[399577194,1766514516966,-75.60455094,0.0001634,2]
[399577196,1766514519854,-124.39544906,0.0001634,2]
[399577197,1766514519878,-135.57866057,0.00016381,2]
[399577198,1766514521437,-164.42133943,0.00016381,2]
[399577199,1766514521461,-222.68716492,0.00016381,2]
[399577200,1766514524401,-200.0,0.00016381,2]
[399577201,1766514527453,-151.0,0.00016275,2]
[399577202,1766514527477,-84.05501781,0.00016381,2]
[399577203,1766514528892,-228.57726909,0.00016381,2]
[399577204,1766514532373,-202.20029535,0.00016381,2]
[399577205,1766514537163,-163.499192,0.00016381,2]
[399577206,1766514540904,-98.98106083,0.00016381,2]
[399577207,1766514540927,-87.85226899,0.00016382,2]
[399577208,1766514543078,-199.77480922,0.00016381,2]
[399577209,1766514547107,-153.42718897,0.00015783,2]
[399577210,1766514549531,-346.57281103,0.00015783,2]
[399577211,1766514549556,-47.00338032,0.0001628,2]
[399577212,1766514551522,-103.99661968,0.0001628,2]
[399577213,1766514551546,-223.25186762,0.00016331,2]
[399577214,1766514553051,-296.58919864,0.00016331,2]
[399577215,1766514556159,-167.39838277,0.00016331,2]
[399577216,1766514558090,-312.76055097,0.00016331,2]
[399577217,1766514558115,-19.57443308,0.00016381,2]
[399577218,1766514560066,-80.6507577,0.00016381,2]
[399577219,1766514560090,-219.3492423,0.00016382,2]
[399577220,1766514561979,-151.0,0.00016293,2]
[399577221,1766514562004,-133.76491919,0.00016382,2]
[399577222,1766514564085,-377.99385595,0.00016382,2]
[399577223,1766514566666,-181.03971357,0.00016382,2]
[399577224,1766514566690,-114.58934185,0.00016382,2]
[399577225,1766514568781,-627.22954673,0.00016373,2]
[399577226,1766514573057,-195.05668678,0.00016373,2]
[399577227,1766514575713,-304.94331322,0.00016373,2]
[399577228,1766514578254,-151.0,0.0001631,2]
[399577229,1766514578298,-228.64592627,0.00016373,2]
[399577230,1766514580465,-267.01941217,0.00016373,2]
[399577231,1766514581941,-386.30292743,0.00016373,2]
[399577232,1766514585525,-217.96003922,0.00016373,2]
[399577233,1766514589327,-182.57397268,0.00016373,2]
[399577234,1766514591324,-277.53071861,0.00016373,2]
[399577235,1766514596522,-151.0,0.00016308,2]
[399577236,1766514596557,-78.39039314,0.00016373,2]
[399577237,1766514599817,-216.65457097,0.00016373,2]
[399577238,1766514603934,-246.05689094,0.00016327,2]
[399577239,1766514606428,-305.88233984,0.00016327,2]
[399577240,1766514608397,-192.25977646,0.00016327,2]
[399577241,1766514610339,-185.98743255,0.00016327,2]
[399577242,1766514613841,-245.8797037,0.00016327,2]
[399577243,1766514615399,-248.81349029,0.00016327,2]
[399577244,1766514616870,-439.13782976,0.00016327,2]
[399577245,1766514619122,-143.52170416,0.00016327,2]
[399577246,1766514619147,-64.96009572,0.00016372,2]
[399577247,1766514621251,-186.28556368,0.00016372,2]
[399577248,1766514622753,-48.7543406,0.00016372,2]
[399577249,1766514622778,-157.03239067,0.00016372,2]
[399577250,1766514624958,-195.0,0.00016372,2]
[399577251,1766514626918,-385.58142651,0.00015783,2]
[399577252,1766514630379,-114.41857349,0.00015783,2]
[399577253,1766514630403,-331.29714449,0.00016331,2]
[399577259,1766514631736,-668.70285551,0.00016331,2]
[399577261,1766514631747,-847.96760933,0.00016372,2]
[399577262,1766514631760,-550.0,0.00016372,2]
[399577263,1766514631770,-12422.23181717,0.00016373,2]
[399577264,1766514631846,-959.91608522,0.00016373,2]
[399577265,1766514631858,-1066.06074944,0.00016373,2]
[399577266,1766514631870,-2467.6954036,0.00016373,2]
[399577267,1766514631881,-717.92687088,0.00016373,2]
[399577268,1766514631893,-906.0,0.00016373,2]
[399577269,1766514631916,-727.65809693,0.00016373,2]
[399577270,1766514631928,-64677.48444066,0.00016373,2]
[399577285,1766514634569,-173.23954065,0.00016373,2]
[399577286,1766514637905,-4660.68352275,0.00016373,2]
[399577287,1766514637917,-447.66174487,0.00016373,2]
[399577288,1766514637928,-688.30896852,0.00016373,2]
[399577290,1766514638359,-14333.4027118,0.00016373,2]
[399577291,1766514638371,-519.53378493,0.00016373,2]
[399577292,1766514638384,-385.09999523,0.00016373,2]
[399577293,1766514638400,-4125.73666421,0.00016373,2]
[399577294,1766514638412,-478.8554117,0.00016373,2]
[399577295,1766514638424,-922.64,0.00016373,2]
[399577296,1766514638441,-82949.85309775,0.00016373,2]
[399577297,1766514638457,-753.25136983,0.00016373,2]
[399577298,1766514638470,-865.42829817,0.00016373,2]
[399577299,1766514638486,-2744.25566807,0.00016373,2]
[399577301,1766514638502,-799024.7682504,0.00016373,2]
[399577302,1766514638512,-287.0,0.00016373,2]
[399577303,1766514638521,-19439.53595815,0.00016382,2]
[399577304,1766514638531,-1000.0,0.00016382,2]
[399577305,1766514638540,-4150.49624808,0.00016382,2]
[399577306,1766514638549,-201.17741891,0.00016382,2]
[399577307,1766514638559,-308.85768627,0.00016382,2]
[399577308,1766514638569,-800.0,0.00016438,2]
[399577309,1766514638579,-10644.1189898,0.00016464,2]
[399577310,1766514638589,-87436.9340309,0.00016473,2]
[399577311,1766514638599,-500.0,0.00016481,2]
[399577312,1766514638609,-500.0,0.00016481,2]
[399577313,1766514638619,-500.0,0.00016481,2]
[399577314,1766514638628,-500.0,0.00016481,2]
[399577315,1766514638638,-500.0,0.00016481,2]
[399577316,1766514638648,-500.0,0.00016481,2]
[399577317,1766514638663,-500.0,0.00016481,2]
[399577318,1766514638673,-500.0,0.00016481,2]
[399577319,1766514638683,-500.0,0.00016481,2]
[399577320,1766514638694,-500.0,0.00016481,2]
[399577321,1766514638704,-500.0,0.00016481,2]
[399577322,1766514638714,-500.0,0.00016481,2]
[399577323,1766514638724,-500.0,0.00016481,2]
[399577324,1766514638735,-500.0,0.00016481,2]
[399577325,1766514638745,-500.0,0.00016481,2]
[399577326,1766514638755,-500.0,0.00016481,2]
[399577327,1766514638769,-500.0,0.00016481,2]
[399577329,1766514638780,-500.0,0.00016481,2]
[399577331,1766514638790,-500.0,0.00016481,2]
[399577333,1766514638802,-500.0,0.00016481,2]
[399577335,1766514638812,-500.0,0.00016481,2]
[399577336,1766514638822,-500.0,0.00016481,2]
[399577337,1766514638832,-500.0,0.00016481,2]
[399577338,1766514638843,-609.92333437,0.00016481,2]
[399577339,1766514638854,-500.0,0.00016481,2]
[399577340,1766514638865,-500.0,0.00016481,2]
[399577341,1766514638875,-500.0,0.00016481,2]
[399577342,1766514638885,-500.0,0.00016481,2]
[399577343,1766514638896,-500.0,0.00016481,2]
[399577344,1766514638906,-500.0,0.00016481,2]
[399577345,1766514638917,-500.0,0.00016481,2]
[399577346,1766514638927,-500.0,0.00016481,2]
[399577347,1766514638938,-500.0,0.00016481,2]
[399577348,1766514638948,-500.0,0.00016481,2]
[399577349,1766514638958,-500.0,0.00016481,2]
[399577350,1766514638969,-500.0,0.00016481,2]
[399577351,1766514638980,-500.0,0.00016481,2]
[399577352,1766514638990,-500.0,0.00016481,2]
[399577353,1766514639000,-500.0,0.00016481,2]
[399577354,1766514639010,-500.0,0.00016481,2]
[399577355,1766514639021,-500.0,0.00016481,2]
[399577356,1766514639036,-500.0,0.00016481,2]
[399577357,1766514639047,-500.0,0.00016481,2]
[399577358,1766514639057,-500.0,0.00016481,2]
[399577359,1766514639068,-500.0,0.00016481,2]
[399577360,1766514639078,-500.0,0.00016481,2]
[399577361,1766514639089,-500.0,0.00016481,2]
[399577362,1766514639099,-500.0,0.00016481,2]
[399577363,1766514639109,-500.0,0.00016481,2]
[399577364,1766514639119,-500.0,0.00016481,2]
[399577365,1766514639129,-500.0,0.00016481,2]
[399577366,1766514639140,-500.0,0.00016481,2]
[399577367,1766514639150,-500.0,0.00016481,2]
[399577368,1766514639160,-500.0,0.00016481,2]
[399577369,1766514639170,-500.0,0.00016481,2]
[399577370,1766514639179,-500.0,0.00016481,2]
[399577371,1766514639189,-500.0,0.00016481,2]
[399577372,1766514639199,-500.0,0.00016481,2]
[399577373,1766514639209,-500.0,0.00016481,2]
[399577374,1766514639219,-500.0,0.00016481,2]
[399577375,1766514639229,-500.0,0.00016481,2]
[399577376,1766514639239,-500.0,0.00016481,2]
[399577377,1766514639249,-500.0,0.00016481,2]
[399577378,1766514639258,-500.0,0.00016481,2]
[399577379,1766514639268,-500.0,0.00016481,2]
[399577380,1766514639278,-500.0,0.00016481,2]
[399577381,1766514639288,-500.0,0.00016481,2]
[399577382,1766514639298,-500.0,0.00016481,2]
[399577383,1766514639308,-500.0,0.00016481,2]
[399577384,1766514639318,-500.0,0.00016481,2]
[399577385,1766514639327,-500.0,0.00016481,2]
[399577386,1766514639337,-500.0,0.00016481,2]
[399577387,1766514639346,-500.0,0.00016481,2]
[399577388,1766514639356,-500.0,0.00016481,2]
[399577389,1766514639366,-500.0,0.00016481,2]
[399577390,1766514639375,-300.0,0.00016481,2]
[399577391,1766514639390,-500.0,0.00016481,2]
[399577392,1766514639399,-500.0,0.00016481,2]
[399577393,1766514639409,-500.0,0.00016481,2]
[399577394,1766514639419,-500.0,0.00016481,2]
[399577395,1766514639428,-500.0,0.00016481,2]
[399577396,1766514639439,-500.0,0.00016481,2]
[399577397,1766514639450,-500.0,0.00016481,2]
[399577398,1766514639459,-500.0,0.00016481,2]
[399577399,1766514639470,-170.34382254,0.00016481,2]
[399577400,1766514639480,-500.0,0.00016481,2]
[399577401,1766514639490,-500.0,0.00016481,2]
[399577402,1766514639500,-355.8652967,0.00016481,2]
[399577403,1766514639510,-500.0,0.00016481,2]
[399577404,1766514639520,-500.0,0.00016481,2]
[399577405,1766514639530,-500.0,0.00016481,2]
[399577406,1766514639540,-278.3762011,0.00016481,2]
[399577407,1766514639551,-500.0,0.00016481,2]
[399577408,1766514639562,-500.0,0.00016481,2]
[399577409,1766514639572,-300.0,0.00016481,2]
[399577410,1766514639585,-500.0,0.00016481,2]
[399577411,1766514639596,-300.0,0.00016481,2]
[399577412,1766514639606,-500.0,0.00016481,2]
[399577413,1766514639617,-500.0,0.00016481,2]
[399577414,1766514639626,-259.30264219,0.00016481,2]
[399577415,1766514639637,-250.59345639,0.00016481,2]
[399577416,1766514639648,-713.46078078,0.00016481,2]
[399577417,1766514639659,-713.46078078,0.00016481,2]
[399577418,1766514639669,-500.0,0.00016481,2]
[399577420,1766514639679,-500.0,0.00016481,2]
[399577422,1766514639689,-500.0,0.00016481,2]
[399577424,1766514639699,-500.0,0.00016481,2]
[399577426,1766514639709,-605.49,0.00016481,2]
[399577427,1766514639719,-605.49,0.00016481,2]
[399577428,1766514639729,-605.49,0.00016481,2]
[399577429,1766514639739,-605.49,0.00016481,2]
[399577430,1766514639750,-193.0,0.00016482,2]
[399577431,1766514639764,-1545.45626587,0.00016482,2]
[399577432,1766514639776,-443.85292262,0.00016482,2]
[399577434,1766514639786,-3187.1623033,0.00016588,2]
[399577435,1766514639798,-3568.03240951,0.00016712,2]
[399577436,1766514639808,-1500.0,0.00016878,2]
[399577438,1766514639818,-1500.0,0.00016878,2]
[399577440,1766514639830,-281.0,0.00016911,2]
[399577442,1766514639840,-605.72274006,0.0001699,2]
[399577443,1766514639850,-605.49,0.00016999,2]
[399577444,1766514639860,-605.49,0.00016999,2]
[399577445,1766514639870,-605.49,0.00016999,2]
[399577446,1766514639880,-605.49,0.00016999,2]
[399577447,1766514639890,-605.49,0.00016999,2]
[399577448,1766514639901,-605.49,0.00016999,2]
[399577449,1766514639911,-605.49,0.00016999,2]
[399577450,1766514639921,-605.49,0.00016999,2]
[399577451,1766514639931,-57854.76234609,0.00017,2]
[399577452,1766514640689,-931.76,0.00017,2]
[399577453,1766514640701,-468.699978,0.00017,2]
[399577454,1766514640718,-102445.17655268,0.00017,2]
[399577463,1766514642246,-1.7e-07,0.00017,2]
[399577464,1766514643232,-151.0,0.00016296,2]
[399577465,1766514643242,-43352.50000001,0.00017,2]
[399577466,1766514643254,-303317.45380859,0.00017,2]
[399577467,1766514643264,-253031.56734752,0.00017,2]
[399577468,1766514643293,-9363.02246663,0.00017,2]
[399577470,1766514643305,-2198.4163084,0.00017,2]
[399577472,1766514643317,-8383.62267235,0.00017,2]
[399577476,1766514643468,-33.63506848,0.00017,2]
[399577478,1766514643480,-278.94,0.00017,2]
[399577479,1766514643491,-1000000.0,0.00017,2]
[399577487,1766514645883,-6498.8924,0.00017,2]
[399577488,1766514645938,-756.2489718,0.00017,2]
[399577489,1766514645949,-44746.7004408,0.00017,2]
[399577490,1766514645994,-371.75191318,0.00017,2]
[399577491,1766514646160,-880.08288909,0.00017,2]
[399577494,1766514666518,-313.63120723,0.00016273,2]
[399577495,1766514666566,-151.0,0.00016331,2]
[399577496,1766514666595,-359.52573798,0.00016481,2]
[399577497,1766514669533,-140.47426202,0.00016481,2]
[399577498,1766514669556,-244.00038138,0.00016481,2]
[399577499,1766514672143,-237.16760672,0.00016372,2]
[399577500,1766514673592,-167.48545431,0.00016372,2]
[399577501,1766514676094,-151.0,0.00016354,2]
[399577502,1766514676126,-119.90240655,0.00016372,2]
[399577503,1766514676159,-2.53757087,0.00016372,2]
[399577504,1766514679333,-239.51454569,0.00016372,2]
[399577505,1766514682443,-213.28853002,0.00016372,2]
[399577506,1766514685278,-69.214821,0.00016372,2]
[399577507,1766514685305,-172.36889812,0.00016372,2]
[399577508,1766514687251,-352.18656946,0.00016372,2]
[399577509,1766514687282,-36.48368077,0.00016372,2]
[399577510,1766514689901,-185.42845754,0.00016372,2]
[399577511,1766514691866,-151.0,0.00016318,2]
[399577512,1766514691896,-92.29042024,0.00016372,2]
[399577513,1766514693987,-210.35290903,0.00016372,2]
[399577514,1766514694015,-59.16036243,0.00016372,2]
[399577515,1766514696057,-360.15388085,0.00016372,2]
[399577516,1766514698762,-105.2412243,0.00016372,2]
[399577517,1766514698798,-283.0887501,0.00016372,2]
[399577518,1766514702114,-241.46671748,0.00016372,2]
[399577519,1766514702142,-353.00807024,0.00016372,2]
[399577520,1766514703619,-157.55058434,0.00016372,2]
[399577521,1766514708837,-151.0,0.00016318,2]
[399577522,1766514708869,-13.996813,0.00016372,2]
[399577523,1766514708896,-71.86281294,0.00016372,2]
[399577524,1766514710382,-428.13718706,0.00016372,2]
[399577525,1766514710406,-71.86281294,0.00016372,2]
[399577526,1766514713640,-86.37919944,0.00016372,2]
[399577527,1766514713670,-163.09225423,0.00016372,2]
[399577528,1766514713699,-50.46913808,0.00016372,2]
[399577529,1766514717190,-297.29561889,0.00016372,2]
[399577530,1766514718968,-152.23524303,0.00016372,2]
[399577531,1766514718994,-260.8054223,0.00016372,2]
[399577532,1766514721589,-185.34531192,0.00016273,2]
[399577533,1766514724008,-244.8310071,0.00016273,2]
[399577534,1766514728231,-243.32495825,0.00016273,2]
[399577535,1766514730290,-193.0,0.00016273,2]
[399577536,1766514733907,-256.08147755,0.00015783,2]
[399577537,1766514737140,-206.61309058,0.00015783,2]
[399577538,1766514741378,-37.30543187,0.00015783,2]
[399577539,1766514741407,-148.05863698,0.00016273,2]
[399577540,1766514743153,-272.42187474,0.00016272,2]
[399577541,1766514743183,-120.96503468,0.00016273,2]
[399577542,1766514747131,-240.93808068,0.00016273,2]
[399577543,1766514750284,-224.02792052,0.00016273,2]
[399577544,1766514751854,-165.64607745,0.00016273,2]
[399577545,1766514756138,-277.12114495,0.00016273,2]
[399577546,1766514758343,-213.41976482,0.00016273,2]
[399577547,1766514764319,-153.01309059,0.00016273,2]
[399577548,1766514766429,-230.18345015,0.00016273,2]
[399577549,1766514768523,-290.05489706,0.00016273,2]
[399577550,1766514772847,-225.1284924,0.00016273,2]
[399577551,1766514776948,-219.41857349,0.00016273,2]
[399577552,1766514780617,-176.67626731,0.00016273,2]
[399577553,1766514782829,-268.79239397,0.00016273,2]
[399577554,1766514784308,-162.8662351,0.00016272,2]
[399577555,1766514789481,-209.08747148,0.00016173,2]
[399577556,1766514789506,-147.93830774,0.00016272,2]
[399577557,1766514790966,-239.19545716,0.00016272,2]
[399577558,1766514791005,-32.22804703,0.00016272,2]
[399577559,1766514793682,-192.58628569,0.00016272,2]
[399577560,1766514796809,-307.41371431,0.00016272,2]
[399577561,1766514798329,-322.01979429,0.00016272,2]
[399577562,1766514800341,-306.05383363,0.00016272,2]
[399577563,1766514805070,-39.69832505,0.00016272,2]
[399577564,1766514805099,-202.7007821,0.00016273,2]
[399577565,1766514807748,-244.21326873,0.00016273,2]
[399577566,1766514811800,500.0,0.00022,30]
[399577567,1766514812158,-289.45372834,0.00016273,2]
[399577568,1766514813676,-233.28425376,0.00016173,2]
[399577569,1766514815826,-237.00163666,0.00016173,2]
[399577570,1766514821427,-212.94338836,0.00016173,2]
[399577571,1766514828716,-250.54999566,0.00016173,2]
[399577572,1766514831420,-213.27228091,0.00016173,2]
[399577573,1766514832824,-248.80871251,0.00016173,2]
[399577574,1766514836531,-404.25620648,0.00016173,2]
[399577575,1766514839191,-210.6127794,0.00016173,2]
[399577576,1766514844915,-284.84350653,0.00016173,2]
[399577577,1766514848543,-196.87185139,0.00016173,2]
[399577578,1766514850264,-215.08945702,0.00016173,2]
[399577579,1766514852254,-279.48633976,0.00016173,2]
[399577580,1766514854776,-215.97542752,0.00016173,2]
[399577581,1766514856382,-186.36914839,0.00016173,2]
[399577582,1766514859786,-232.351131,0.00016173,2]
[399577583,1766514863219,-333.54423251,0.00016173,2]
[399577584,1766514866444,-184.80488258,0.00016173,2]
[399577585,1766514869166,-10.43101764,0.00016173,2]
[399577586,1766514869190,-151.0,0.00016264,2]
[399577587,1766514869216,-17.77499989,0.00016272,2]
[399577588,1766514871233,-350.2803979,0.00016272,2]
[399577589,1766514872688,-176.9988441,0.00016272,2]
[399577590,1766514872715,-1.59763309,0.00016272,2]
[399577591,1766514877048,-285.80535997,0.00016272,2]
[399577592,1766514881510,-250.73208057,0.00016272,2]
[399577593,1766514884148,-206.21057752,0.00016173,2]
[399577594,1766514885721,-228.37510685,0.00016173,2]
[399577595,1766514887801,-492.43574919,0.00016173,2]
[399577596,1766514890509,-72.97856644,0.00016173,2]
[399577597,1766514890535,-130.42966527,0.00016244,2]
[399577598,1766514893102,-20.57033473,0.00016244,2]
[399577599,1766514893126,-146.32164081,0.00016272,2]
[399577600,1766514896829,-296.59176829,0.00016272,2]
[399577601,1766514900653,-57.0865909,0.00016272,2]
[399577602,1766514900680,-6.91916826,0.00016272,2]
[399577603,1766514900709,-116.49856696,0.00016272,2]
[399577604,1766514903006,-160.16794915,0.00016271,2]
[399577605,1766514904098,-193.59633604,0.00016271,2]
[399577606,1766514906264,-226.32515273,0.00016271,2]
[399577607,1766514908257,-184.66639574,0.00016271,2]
[399577608,1766514911263,-319.37539144,0.00016271,2]
[399577609,1766514912734,-115.8687749,0.00016271,2]